bitfinex-derivatives/quotes_SOLF0:USTF0_20250626
["timestamp","ask_amount","ask_price","bid_price","bid_amount"]
[1750950181326,4.46963166,143.16,143.12,6.44447613]
[1750950181523,4.46963166,143.16,143.11,6.44447613]
[1750950181717,4.46963166,143.18,143.11,10.91410779]
[1750950181920,4.46963166,143.18,143.12,6.44447613]
[1750950182115,4.46963166,143.18,143.15,6.9821]
[1750950182414,11.45093166,143.18,143.13,6.44447613]
[1750950182926,6.9813,143.18,143.13,6.44447613]
[1750950183320,6.9813,143.18,143.15,6.9822]
[1750950184331,6.9816,143.17,143.15,6.9822]
[1750950184525,41.3766,143.2,143.16,6.9817]
[1750950184716,6.9813,143.18,143.15,6.44447613]
[1750950184920,6.9813,143.18,143.16,6.982]
[1750950185326,6.9813,143.18,143.15,6.44447613]
[1750950185524,6.9818,143.17,143.15,6.44447613]
[1750950185730,6.9818,143.17,143.14,6.44447613]
[1750950186430,4.46963166,143.19,143.15,6.9822]
[1750950186926,6.9814,143.18,143.15,6.9822]
[1750950187629,6.9814,143.18,143.16,6.982]
[1750950187932,11.45043166,143.19,143.16,6.982]
[1750950188329,6.9808,143.19,143.16,6.982]
[1750950188525,6.9811,143.18,143.16,6.982]
[1750950188725,41.3766,143.2,143.16,6.982]
[1750950189027,41.3766,143.2,143.15,13.42677613]
[1750950189028,6.9813,143.18,143.15,13.42677613]
[1750950189334,4.46963166,143.19,143.15,6.44447613]
[1750950189820,6.9813,143.18,143.15,13.42677613]
[1750950190539,6.9816,143.17,143.15,13.42677613]
[1750950191236,6.9816,143.17,143.16,6.44447613]
[1750950191933,4.46963166,143.19,143.16,13.42647613]
[1750950192129,5.43728821,143.18,143.16,13.42647613]
[1750950192331,5.44090463,143.17,143.16,6.44447613]
[1750950192526,5.44090463,143.17,143.16,13.42627613]
[1750950193229,5.44090463,143.17,143.15,15.47887867]
[1750950193436,6.9811,143.18,143.15,15.47887867]
[1750950193731,6.9811,143.18,143.17,6.4477929]
[1750950193932,15.01367334,143.18,143.17,6.4477929]
[1750950194236,15.01367334,143.18,143.16,6.4477929]
[1750950194534,5.44492647,143.17,143.16,6.4477929]
[1750950194730,12.42652647,143.17,143.15,15.47887867]
[1750950194935,6.9816,143.17,143.15,15.47887867]
[1750950196831,6.982,143.16,143.15,8.49657867]
[1750950197042,8.03520931,143.16,143.14,8.49657867]
[1750950197232,9.91750814,143.15,143.14,8.49657867]
[1750950197426,16.90000814,143.15,143.14,8.49657867]
[1750950197833,9.91750814,143.15,143.13,8.49657867]
[1750950198132,8.03669536,143.14,143.12,8.49657867]
[1750950198334,12.50632702,143.13,143.12,8.49657867]
[1750950198533,19.48982702,143.13,143.12,6.45340928]
[1750950198733,12.50632702,143.13,143.1,8.49657867]
[1750950198930,8.03563101,143.12,143.11,6.4552866]
[1750950199136,15.02003101,143.12,143.09,15.48197867]
[1750950199438,5.44871667,143.11,143.09,15.48197867]
[1750950199638,6.9844,143.12,143.09,6.9854]
[1750950199830,5.45201239,143.11,143.09,6.9854]
[1750950200025,11.45333166,143.13,143.08,45.05657867]
[1750950200232,8.03728137,143.12,143.08,45.05657867]
[1750950200436,4.46963166,143.13,143.09,6.9852]
[1750950200733,12.43347038,143.12,143.09,6.9852]
[1750950200934,6.9842,143.12,143.08,45.05657867]
[1750950201135,11.45343166,143.13,143.1,6.985]
[1750950201330,5.44927038,143.12,143.1,6.985]
[1750950201537,11.45343166,143.13,143.1,6.985]
[1750950201737,5.44698092,143.12,143.09,6.9852]
[1750950201939,4.46963166,143.13,143.09,6.9852]
[1750950202140,4.46963166,143.11,143.08,36.56]
[1750950202342,4.46963166,143.09,143.06,8.49657867]
[1750950202541,4.46963166,143.09,143.05,44.99657867]
[1750950202740,6.9862,143.08,143.05,51.98377867]
[1750950202939,6.9862,143.08,143.05,15.48377867]
[1750950203245,6.986,143.08,143.05,6.9872]
[1750950203443,6.986,143.08,143.06,6.9867]
[1750950204041,6.9855,143.09,143.07,6.9864]
[1750950204241,5.44320978,143.08,143.07,6.9864]
[1750950204443,11.45463166,143.1,143.07,6.9861]
[1750950204641,5.39948234,143.09,143.07,6.9861]
[1750950204941,4.46963166,143.1,143.03,4.46963166]
[1750950205149,5.39948234,143.09,143.03,4.46963166]
[1750950205444,4.46963166,143.1,143.02,673.33657867]
[1750950205643,11.45583166,143.08,143.05,6.9873]
[1750950205842,2.3548,143.11,143.03,12.96621033]
[1750950205843,2.57156952,143.1,143.03,12.96621033]
[1750950206038,12.38206344,143.09,143.03,8.49657867]
[1750950206237,6.9859,143.09,143.03,4.46963166]
[1750950206950,40.96963166,143.12,143.03,12.96621033]
[1750950207146,5.39347907,143.11,143.07,6.9861]
[1750950207353,6.9853,143.1,143.05,4.46963166]
[1750950207546,6.9853,143.1,143.03,12.96621033]
[1750950208243,6.9853,143.1,143.07,6.9864]
[1750950208547,6.9855,143.09,143.07,6.9864]
[1750950208945,6.9859,143.09,143.03,8.49657867]
[1750950209151,4.46963166,143.1,143.03,8.49657867]
[1750950209351,4.46963166,143.08,143.02,669.30963166]
[1750950209552,4.46963166,143.08,143.02,36.5]
[1750950210054,6.9869,143.06,143.03,6.9881]
[1750950210552,4.46963166,143.08,143.02,36.5]
[1750950210754,6.987,143.06,143.03,6.9881]
[1750950211351,4.46963166,143.08,143.02,36.5]
[1750950211848,4.46963166,143.08,143.04,6.9876]
[1750950212251,9.21113166,143.1,143.02,36.5]
[1750950212554,9.21113166,143.1,143.03,4.46963166]
[1750950212742,9.21113166,143.1,143.02,36.5]
[1750950212940,9.21113166,143.1,143.03,4.46963166]
[1750950213247,4.46963166,143.08,143.02,36.5]
[1750950213449,6.987,143.06,143.03,6.988]
[1750950213656,40.96963166,143.08,143.02,36.5]
[1750950213846,6.9867,143.07,143.04,6.9876]
[1750950214153,36.5,143.08,143.02,36.5]
[1750950214454,6.9865,143.07,143.04,6.9876]
[1750950214954,6.9865,143.07,143.05,6.9874]
[1750950215253,6.9872,143.06,143.02,36.5]
[1750950216253,6.9874,143.05,143.03,6.9881]
[1750950216753,4.46963166,143.07,143.02,36.5]
[1750950217058,6.9881,143.04,142.99,45.63453166]
[1750950217555,6.9881,143.04,143.01,6.9889]
[1750950217752,6.9881,143.04,142.99,45.63453166]
[1750950218757,6.9881,143.04,143.01,6.9891]
[1750950219058,4.46963166,143.06,142.99,45.63453166]
[1750950219248,4.46963166,143.06,143.0,6.9896]
[1750950219451,6.9885,143.03,143.0,6.9896]
[1750950219758,40.96963166,143.08,142.99,40.98963166]
[1750950220149,6.9871,143.06,142.99,40.98963166]
[1750950220548,6.9871,143.06,143.03,6.9881]
[1750950221457,6.9867,143.07,143.01,4.46963166]
[1750950222050,4.7415,143.1,143.06,6.9865]
[1750950222254,4.7415,143.1,143.03,40.98963166]
[1750950222654,6.9857,143.09,143.06,6.9868]
[1750950224056,6.9863,143.08,143.05,6.9872]
[1750950224457,4.46963166,143.09,143.05,6.9872]
[1750950224656,6.986,143.08,143.05,6.9872]
[1750950224857,6.986,143.08,143.03,40.98963166]
[1750950225057,6.9859,143.09,143.03,40.98963166]
[1750950225556,6.9859,143.09,143.06,6.9867]
[1750950226455,6.986,143.08,143.06,6.9867]
[1750950227558,6.986,143.08,143.05,6.9872]
[1750950228560,6.9865,143.07,143.05,6.9872]
[1750950229663,6.986,143.08,143.05,6.9872]
[1750950230659,6.986,143.08,143.06,6.9868]
[1750950230964,6.9865,143.07,143.03,40.98963166]
[1750950231156,4.46963166,143.09,143.03,40.98963166]
[1750950231357,6.9862,143.08,143.05,6.9872]
[1750950231560,4.46963166,143.09,143.05,6.9872]
[1750950232361,2.3668,143.1,143.05,6.9872]
[1750950232560,6.83643166,143.1,143.05,6.9872]
[1750950232859,6.9865,143.07,143.05,6.9872]
[1750950233057,6.83643166,143.1,143.03,36.52]
[1750950233058,2.3668,143.1,143.06,6.9869]
[1750950233261,6.9864,143.08,143.03,36.52]
[1750950233461,6.83643166,143.1,143.03,36.52]
[1750950233768,6.9869,143.07,143.03,36.52]
[1750950233958,6.83643166,143.1,143.03,36.52]
[1750950234566,6.9869,143.06,143.04,6.9877]
[1750950234862,4.46963166,143.08,143.03,36.52]
[1750950235069,6.9872,143.06,143.0,45.70513166]
[1750950236669,6.9875,143.05,143.03,6.9881]
[1750950238064,6.9875,143.05,143.02,6.9886]
[1750950238465,6.9879,143.04,143.02,6.9886]
[1750950239069,6.9879,143.04,143.01,6.9891]
[1750950239370,6.9879,143.04,143.0,36.44]
[1750950239770,6.9879,143.04,143.01,6.989]
[1750950240368,6.9874,143.05,143.0,36.44]
[1750950240572,40.92963166,143.07,143.0,36.44]
[1750950240772,6.9881,143.04,143.01,6.9891]
[1750950241665,6.9881,143.04,143.02,6.9888]
[1750950242160,6.9881,143.04,143.01,6.989]
[1750950242364,6.9881,143.04,143.0,36.44]
[1750950243165,6.9881,143.04,143.0,44.93657867]
[1750950243566,6.9881,143.04,143.02,6.9888]
[1750950244769,6.9878,143.05,143.02,6.9888]
[1750950245167,40.92963166,143.07,143.03,6.9883]
[1750950245368,6.9874,143.05,143.03,6.9883]
[1750950245574,6.9874,143.05,143.01,8.49657867]
[1750950245776,40.92963166,143.07,143.01,8.49657867]
[1750950246083,5.33149829,143.06,143.02,6.9886]
[1750950246285,5.33311245,143.05,143.01,8.49657867]
[1750950246483,6.9872,143.06,143.03,6.9881]
[1750950248582,43.4464,143.07,143.02,8.49657867]
[1750950248880,36.46,143.14,143.05,12.96621033]
[1750950249085,7.8892981,143.13,143.1,4.46963166]
[1750950249281,2.3518,143.16,143.1,4.46963166]
[1750950249585,2.3518,143.16,143.08,44.95657867]
[1750950249586,7.88261331,143.15,143.11,4.46963166]
[1750950249790,5.32869296,143.14,143.12,6.9838]
[1750950249982,2.3518,143.16,143.12,6.9838]
[1750950250183,7.87563079,143.15,143.12,6.9838]
[1750950250383,6.9828,143.15,143.12,6.9838]
[1750950251279,2.3518,143.16,143.09,12.96621033]
[1750950251480,7.87032335,143.15,143.09,12.96621033]
[1750950251773,6.9833,143.14,143.11,6.9842]
[1750950251977,2.3518,143.16,143.09,12.96621033]
[1750950252186,5.31561169,143.15,143.08,47.22787867]
[1750950252387,6.9825,143.15,143.12,6.9838]
[1750950252586,38.9489,143.17,143.11,4.46963166]
[1750950252786,7.86643361,143.16,143.11,4.46963166]
[1750950252985,5.31311281,143.15,143.13,6.9832]
[1750950253190,6.9823,143.16,143.13,6.9832]
[1750950253588,43.4417,143.17,143.11,4.46963166]
[1750950253786,2.4304,143.19,143.12,36.44]
[1750950253989,5.31006119,143.18,143.12,36.44]
[1750950254293,6.9813,143.18,143.14,6.983]
[1750950254490,2.4304,143.19,143.14,6.983]
[1750950255590,6.9819,143.17,143.14,6.983]
[1750950255786,2.4304,143.19,143.13,11.45293166]
[1750950255986,2.4304,143.19,143.13,6.9833]
[1750950256185,2.4304,143.19,143.12,36.44]
[1750950256391,2.4304,143.19,143.14,6.983]
[1750950256687,43.21753166,143.2,143.13,4.46963166]
[1750950256893,38.7479,143.2,143.15,6.9821]
[1750950257090,38.7479,143.2,143.13,4.46963166]
[1750950257396,6.9808,143.19,143.13,4.46963166]
[1750950258389,6.9808,143.19,143.16,6.9818]
[1750950260194,6.9811,143.18,143.15,6.9823]
[1750950260395,6.9811,143.18,143.13,4.46963166]
[1750950260693,38.7479,143.2,143.12,36.44]
[1750950260888,4.46963166,143.18,143.12,36.44]
[1750950262799,6.9818,143.17,143.14,6.9826]
[1750950263495,11.45093166,143.18,143.15,6.9825]
[1750950263696,6.9813,143.18,143.15,6.9825]
[1750950263897,43.21753166,143.2,143.12,36.44]
[1750950264493,6.9816,143.17,143.14,6.9828]
[1750950264692,6.9816,143.17,143.12,36.44]
[1750950264890,6.9815,143.18,143.14,6.9828]
[1750950265096,43.21753166,143.2,143.14,6.9828]
[1750950265297,48.64700332,143.2,143.14,6.9828]
[1750950265601,6.9816,143.17,143.14,6.9828]
[1750950266090,43.21753166,143.2,143.13,4.46963166]
[1750950266291,6.981,143.19,143.13,4.46963166]
[1750950266696,6.981,143.19,143.16,6.9816]
[1750950268500,6.9811,143.18,143.15,6.9823]
[1750950269591,38.7479,143.2,143.13,4.46963166]
[1750950270117,45.7284,143.2,143.13,4.46963166]
[1750950270287,38.7479,143.2,143.13,4.46963166]
[1750950270487,43.21753166,143.2,143.13,4.46963166]
[1750950270902,6.9813,143.18,143.15,6.9822]
[1750950271205,6.9813,143.18,143.13,4.46963166]
[1750950271502,43.21753166,143.2,143.13,4.46963166]
[1750950272201,6.9812,143.18,143.15,6.9822]
[1750950272594,6.9812,143.18,143.13,4.46963166]
[1750950272794,6.9808,143.19,143.16,6.9819]
[1750950273697,6.9811,143.18,143.16,6.9819]
[1750950274802,4.46963166,143.18,143.12,36.44]
[1750950274998,4.46963166,143.16,143.12,36.44]
[1750950275193,4.46963166,143.16,143.11,6.9842]
[1750950275701,6.9832,143.14,143.11,6.9842]
[1750950280600,36.36,143.16,143.1,6.38926229]
[1750950280808,9.19863166,143.18,143.1,10.85889395]
[1750950281005,14.59749799,143.18,143.12,4.46963166]
[1750950281299,4.729,143.18,143.12,4.46963166]
[1750950281797,6.9813,143.18,143.15,6.9825]
[1750950284809,6.9813,143.18,143.14,6.9828]
[1750950285012,6.9817,143.17,143.14,6.9828]
[1750950285310,6.9817,143.17,143.13,6.983]
[1750950286308,6.9817,143.17,143.14,6.9829]
[1750950291503,6.9817,143.17,143.15,6.9825]
[1750950292110,6.9814,143.18,143.15,6.9825]
[1750950292408,5.41581629,143.17,143.15,6.9825]
[1750950292611,6.9814,143.18,143.15,6.9825]
[1750950292809,5.41581629,143.17,143.15,6.9825]
[1750950293010,6.9814,143.18,143.15,6.9825]
[1750950293210,5.41581629,143.17,143.15,6.9825]
[1750950293398,5.41581629,143.16,143.15,6.9825]
[1750950294205,12.39781629,143.16,143.15,6.38410325]
[1750950294407,7.9978912,143.16,143.14,6.42819556]
[1750950294709,12.46798218,143.15,143.11,8.51213767]
[1750950294906,11.45343166,143.13,143.1,14.90139996]
[1750950295509,11.45343166,143.13,143.1,21.88629996]
[1750950295906,6.9838,143.13,143.1,21.88629996]
[1750950296305,6.9838,143.13,143.11,6.9845]
[1750950296914,6.9833,143.14,143.11,6.9844]
[1750950297704,47.75243166,143.15,143.12,6.9839]
[1750950297904,5.42750822,143.14,143.12,6.9839]
[1750950298206,40.76963166,143.15,143.12,6.9839]
[1750950298411,8.00878996,143.14,143.12,6.9839]
[1750950298601,40.76963166,143.15,143.12,6.9839]
[1750950298804,14.99198996,143.14,143.11,6.9842]
[1750950299003,40.76963166,143.15,143.1,6.38926229]
[1750950299004,8.00910992,143.13,143.1,6.38926229]
[1750950299208,40.76963166,143.15,143.1,6.38926229]
[1750950299412,8.00748278,143.14,143.1,13.37386229]
[1750950299608,12.47711858,143.13,143.1,6.38926229]
[1750950299813,4.46963166,143.11,143.07,8.51213767]
[1750950300011,6.9859,143.08,143.07,8.51213767]
[1750950300210,5.42912265,143.08,143.06,8.51213767]
[1750950300403,19.46769792,143.07,143.05,8.51213767]
[1750950300609,2.3275,143.1,143.01,2.4452]
[1750950300610,4.46963166,143.09,143.02,12.98176933]
[1750950300811,8.00182295,143.08,143.02,12.98176933]
[1750950301102,6.9863,143.08,143.06,6.9867]
[1750950301507,2.3275,143.1,143.06,6.9867]
[1750950301709,5.41864517,143.09,143.06,6.9867]
[1750950301908,2.3275,143.1,143.06,6.9867]
[1750950302108,7.96939032,143.09,143.06,6.9867]
[1750950302316,2.3275,143.1,143.06,6.9867]
[1750950302514,5.38889766,143.09,143.06,6.9867]
[1750950302718,2.3275,143.1,143.07,6.9863]
[1750950302918,5.34924278,143.09,143.07,6.9863]
[1750950303117,2.3275,143.1,143.07,6.9863]
[1750950303813,9.3126,143.1,143.08,6.9858]
[1750950304522,9.3126,143.1,143.07,6.9862]
[1750950305021,40.76963166,143.11,143.09,6.9855]
[1750950305216,36.3,143.11,143.04,40.78963166]
[1750950305622,36.3,143.11,143.09,6.9852]
[1750950306122,6.9842,143.12,143.09,6.9852]
[1750950306324,6.9846,143.11,143.09,6.9852]
[1750950306622,6.9846,143.11,143.04,40.78963166]
[1750950307014,6.9846,143.11,143.08,6.9857]
[1750950308721,45.60303166,143.13,143.06,4.46963166]
[1750950309026,43.19573166,143.13,143.06,4.46963166]
[1750950309211,50.17953166,143.13,143.1,6.9847]
[1750950310617,45.7099,143.13,143.1,6.9847]
[1750950310920,6.984,143.12,143.09,6.9852]
[1750950311728,6.984,143.12,143.06,4.46963166]
[1750950311924,43.3038,143.13,143.06,4.46963166]
[1750950312121,36.32,143.13,143.08,4.46963166]
[1750950312428,6.9836,143.13,143.08,4.46963166]
[1750950312813,6.9836,143.13,143.09,6.9852]
[1750950313120,6.9836,143.13,143.08,40.78963166]
[1750950313623,6.9836,143.13,143.1,6.9847]
[1750950314425,4.46963166,143.13,143.08,36.32]
[1750950315123,6.9842,143.12,143.08,36.32]
[1750950315323,4.46963166,143.13,143.08,36.32]
[1750950315531,5.37208506,143.12,143.08,36.32]
[1750950315826,4.46963166,143.13,143.08,36.32]
[1750950316122,12.35638507,143.12,143.09,6.9852]
[1750950316429,6.9843,143.12,143.09,6.9852]
[1750950317226,6.9845,143.11,143.09,6.9852]
[1750950319730,4.46963166,143.11,143.05,47.28543767]
[1750950319930,4.46963166,143.11,143.05,38.7733]
[1750950320130,4.46963166,143.11,143.07,6.9861]
[1750950320332,4.46963166,143.11,143.05,36.32]
[1750950320534,6.83693166,143.11,143.05,36.32]
[1750950320935,6.9861,143.08,143.06,6.9867]
[1750950321330,36.26,143.12,143.05,40.78963166]
[1750950321626,36.26,143.12,143.09,6.9852]
[1750950322324,6.9846,143.11,143.09,6.9852]
[1750950322526,36.26,143.12,143.09,6.9852]
[1750950322827,4.46963166,143.14,143.07,4.46963166]
[1750950323028,6.9837,143.13,143.07,4.46963166]
[1750950323321,6.9837,143.13,143.1,6.9847]
[1750950324033,6.9837,143.13,143.07,4.46963166]
[1750950324034,6.9831,143.14,143.11,6.9842]
[1750950324335,36.26,143.15,143.09,40.72963166]
[1750950324528,6.9833,143.14,143.11,6.9841]
[1750950324736,40.72963166,143.15,143.11,6.9841]
[1750950325128,6.9833,143.14,143.11,6.9841]
[1750950325431,40.72963166,143.15,143.11,6.9841]
[1750950325728,40.72963166,143.15,143.1,6.9848]
[1750950326436,40.72963166,143.15,143.09,36.26]
[1750950326735,4.46963166,143.13,143.07,4.46963166]
[1750950326937,4.46963166,143.14,143.07,4.46963166]
[1750950327538,6.9843,143.12,143.09,6.9852]
[1750950327834,4.46963166,143.14,143.07,4.46963166]
[1750950328133,4.46963166,143.14,143.08,6.9857]
[1750950328432,5.3616826,143.13,143.06,40.72963166]
[1750950328636,4.46963166,143.14,143.06,40.72963166]
[1750950328826,5.3616826,143.13,143.06,40.72963166]
[1750950329133,6.9847,143.11,143.06,40.72963166]
[1750950329536,4.46963166,143.1,143.06,36.26]
[1750950329732,4.46963166,143.08,143.04,8.51213767]
[1750950330033,6.9865,143.07,143.04,8.51213767]
[1750950330234,4.46963166,143.08,143.03,44.77213767]
[1750950330736,6.9868,143.07,143.03,36.26]
[1750950331121,6.9868,143.07,143.04,6.9874]
[1750950332333,4.46963166,143.08,143.03,36.26]
[1750950332631,4.46963166,143.08,143.01,8.51213767]
[1750950332829,6.9864,143.08,143.04,6.9875]
[1750950333134,6.9864,143.08,143.03,4.46963166]
[1750950333331,6.9858,143.09,143.06,6.9866]
[1750950333633,6.9858,143.09,143.04,36.26]
[1750950333833,6.9852,143.1,143.07,6.9862]
[1750950334041,6.9852,143.1,143.05,4.46963166]
[1750950334335,6.9852,143.1,143.05,6.77413166]
[1750950334633,6.9852,143.1,143.07,6.9862]
[1750950335336,6.9855,143.09,143.06,6.9867]
[1750950335527,36.26,143.11,143.05,6.77413166]
[1750950335729,6.9852,143.1,143.05,6.77413166]
[1750950335928,36.26,143.11,143.06,6.9867]
[1750950336229,36.26,143.11,143.05,6.77413166]
[1750950336836,6.9852,143.1,143.05,6.77413166]
[1750950337031,36.26,143.11,143.05,6.77413166]
[1750950337823,6.9852,143.1,143.07,6.9862]
[1750950340639,36.26,143.11,143.05,15.28626933]
[1750950341137,6.9853,143.1,143.07,6.9862]
[1750950343242,6.82564668,143.13,143.06,4.46963166]
[1750950343551,14.89513236,143.12,143.06,4.46963166]
[1750950343839,5.34990914,143.11,143.09,6.9854]
[1750950344042,6.9838,143.13,143.06,4.46963166]
[1750950344243,6.9838,143.13,143.06,12.98176933]
[1750950344438,36.26,143.14,143.06,12.98176933]
[1750950344637,12.37904049,143.13,143.06,12.98176933]
[1750950344939,5.34910845,143.12,143.07,8.51213767]
[1750950345145,4.38098463,143.16,143.1,4.46963166]
[1750950345342,2.55995787,143.15,143.13,6.9832]
[1750950345541,36.26,143.17,143.12,4.46963166]
[1750950345741,5.34802162,143.16,143.12,4.46963166]
[1750950346043,4.7319,143.19,143.14,6.9827]
[1750950346244,7.90717584,143.18,143.14,6.9827]
[1750950346545,7.90717584,143.17,143.14,6.9827]
[1750950346753,6.9818,143.17,143.13,6.9833]
[1750950347445,6.9821,143.16,143.13,6.9833]
[1750950348839,6.9818,143.17,143.14,6.9829]
[1750950349241,4.7319,143.19,143.12,40.72963166]
[1750950349448,6.9816,143.17,143.14,6.9828]
[1750950350942,6.9821,143.16,143.13,6.9833]
[1750950352550,6.9826,143.15,143.12,43.2437]
[1750950354754,4.46963166,143.18,143.12,36.26]
[1750950354954,4.46963166,143.16,143.12,36.26]
[1750950355155,4.46963166,143.16,143.1,10.93383767]
[1750950355755,6.9826,143.15,143.13,6.9834]
[1750950357853,9.16169151,143.19,143.11,4.46963166]
[1750950358057,5.37032182,143.18,143.13,4.46963166]
[1750950358254,36.26,143.2,143.15,4.46963166]
[1750950359153,43.2404,143.2,143.17,6.9813]
[1750950359756,6.9809,143.19,143.16,6.9818]
[1750950359951,6.9809,143.19,143.15,4.46963166]
[1750950360255,36.26,143.2,143.15,11.45173166]
[1750950360859,6.9808,143.19,143.16,6.9819]
[1750950361961,6.9811,143.18,143.16,6.9819]
[1750950363154,6.9808,143.19,143.16,6.9819]
[1750950364958,6.9812,143.18,143.16,6.9819]
[1750950365259,4.46963166,143.17,143.13,36.2]
[1750950365463,4.46963166,143.15,143.08,36.2]
[1750950365658,4.46963166,143.13,143.08,36.2]
[1750950365967,6.9857,143.09,143.05,126.85705033]
[1750950366363,6.9857,143.09,143.06,6.9867]
[1750950366662,6.9857,143.09,143.05,126.85705033]
[1750950366852,4.46963166,143.09,143.02,49.18176933]
[1750950367367,6.9862,143.08,143.04,6.9876]
[1750950367665,6.9862,143.08,143.02,49.18176933]
[1750950367866,4.46963166,143.07,143.02,44.71213767]
[1750950368068,4.46963166,143.05,143.02,6.4328454]
[1750950368274,4.46963166,143.05,143.0,6.4328454]
[1750950368774,4.46963166,143.03,143.0,6.4328454]
[1750950368958,4.46963166,143.03,142.99,43.1902]
[1750950369365,4.46963166,143.03,142.99,36.2]
[1750950370168,4.46963166,143.03,143.0,6.9894]
[1750950370670,4.6828,143.06,143.02,6.9885]
[1750950370859,9.15243166,143.06,142.99,36.2]
[1750950371060,6.9876,143.05,143.01,6.989]
[1750950371260,9.15243166,143.06,142.99,36.2]
[1750950371464,4.6828,143.06,142.99,36.2]
[1750950371670,4.46963166,143.05,142.99,36.2]
[1750950372171,4.46963166,143.05,143.03,6.9882]
[1750950372363,36.2,143.07,142.99,36.2]
[1750950372364,36.2,143.07,143.0,4.46963166]
[1750950372560,36.2,143.07,143.0,10.90247706]
[1750950372762,45.34573166,143.11,143.07,6.9864]
[1750950373062,38.5302,143.11,143.04,4.46963166]
[1750950373261,6.9852,143.1,143.06,6.9866]
[1750950373771,6.9852,143.1,143.07,6.9864]
[1750950374171,6.9852,143.1,143.04,4.46963166]
[1750950374466,6.9852,143.1,143.06,6.9868]
[1750950375473,36.22,143.11,143.08,6.9858]
[1750950377281,6.985,143.1,143.07,6.9863]
[1750950377882,43.2047,143.11,143.08,6.9858]
[1750950378076,36.22,143.11,143.05,4.46963166]
[1750950378274,4.46963166,143.13,143.05,4.46963166]
[1750950378474,4.46963166,143.13,143.08,6.9857]
[1750950379080,4.46963166,143.13,143.07,6.9862]
[1750950379276,4.46963166,143.11,143.05,4.46963166]
[1750950379683,6.9852,143.1,143.05,4.46963166]
[1750950379891,4.46963166,143.11,143.03,51.78437706]
[1750950380088,4.46963166,143.09,143.03,49.43357706]
[1750950380384,4.46963166,143.09,143.03,44.9639454]
[1750950380687,4.46963166,143.05,143.0,42.6528454]
[1750950380983,4.46963166,143.03,142.99,6.4328454]
[1750950381384,11.45823166,143.03,143.0,6.9896]
[1750950381782,4.46963166,143.03,142.98,6.4328454]
[1750950382079,36.2,143.05,142.98,10.90247706]
[1750950382485,43.1875,143.05,143.02,6.9886]
[1750950384578,36.2,143.05,143.0,4.46963166]
[1750950384778,47.76553166,143.08,143.0,4.46963166]
[1750950385182,6.9875,143.05,143.02,6.9886]
[1750950386392,6.9872,143.06,143.03,6.9883]
[1750950386592,47.76553166,143.08,143.0,4.46963166]
[1750950387092,6.9871,143.06,143.02,6.9886]
[1750950387393,47.76553166,143.08,143.02,6.9886]
[1750950387592,6.9873,143.06,143.02,6.9886]
[1750950388494,6.9873,143.06,143.03,6.9882]
[1750950388693,9.16383166,143.08,143.02,4.46963166]
[1750950389091,9.16383166,143.08,143.04,6.9877]
[1750950389287,36.2,143.09,143.02,4.46963166]
[1750950389690,6.9867,143.07,143.02,4.46963166]
[1750950390188,6.9867,143.07,143.04,6.9876]
[1750950391783,4.46963166,143.08,143.01,36.2]
[1750950392497,6.9877,143.05,143.02,6.9886]
[1750950392688,4.46963166,143.06,143.02,6.9886]
[1750950393088,6.9875,143.05,143.02,6.9886]
[1750950393296,4.46963166,143.06,143.01,36.2]
[1750950393493,6.9886,143.03,143.01,36.2]
[1750950393693,6.9886,143.03,143.0,6.9896]
[1750950394100,6.9886,143.03,143.01,6.9893]
[1750950395297,6.9889,143.02,143.0,6.9897]
[1750950395501,4.46963166,143.06,143.0,6.9897]
[1750950395997,6.9887,143.03,143.01,6.9892]
[1750950396598,6.9887,143.03,143.0,6.9897]
[1750950397395,6.989,143.02,143.0,6.9897]
[1750950397597,6.989,143.02,142.99,6.9901]
[1750950397795,6.989,143.02,142.98,36.2]
[1750950398096,6.989,143.02,142.99,6.9899]
[1750950400104,6.9886,143.03,143.0,6.9897]